bitfinex/quotes_ETHUSD_20241101
["timestamp","ask_amount","ask_price","bid_price","bid_amount"]
[1730471940809,0.00979,2570.0,2569.5,1.3573]
[1730471940958,0.00979,2570.0,2568.3,0.58559]
[1730471940959,3.89217,2569.3,2569.1,1.3573]
[1730471941160,3.89183,2569.5,2569.1,1.3573]
[1730471941903,3.89197,2569.4,2569.1,1.3573]
[1730471942053,3.89173,2569.6,2569.2,0.0778409]
[1730471942364,3.8919,2569.5,2569.1,1.3573]
[1730471942565,3.8919,2569.5,2569.2,0.55]
[1730471943010,6.89121,2569.9,2569.4,0.55]
[1730471943183,3.89143,2569.8,2569.2,5.30588703]
[1730471943395,6.89121,2569.9,2569.4,4.44193]
[1730471943913,6.89121,2569.9,2569.4,0.55]
[1730471943914,3.89121,2569.9,2569.4,0.55]
[1730471944081,3.89121,2569.9,2569.2,0.86372703]
[1730471944082,3.89137,2569.8,2569.3,4.44209]
[1730471944280,3.89137,2569.8,2569.3,1.6055327]
[1730471944617,3.89126,2569.9,2569.5,0.55]
[1730471944806,3.89126,2569.9,2569.7,0.55]
[1730471944978,0.00979,2570.0,2569.7,0.55]
[1730471945311,3.89121,2569.9,2569.7,0.55]
[1730471946422,0.00979,2570.0,2569.7,0.55]
[1730471946572,0.00979,2570.0,2569.7,1.129488]
[1730471946778,0.00979,2570.0,2569.7,0.55]
[1730471947010,3.89135,2569.8,2569.7,0.55]
[1730471947716,3.89121,2569.9,2569.3,1.3086]
[1730471948022,1.3893,2569.6,2568.6,1.3086]
[1730471948175,3.89231,2569.2,2568.6,2.19182336]
[1730471948375,3.89185,2569.5,2568.7,3.9708275]
[1730471948589,6.89202,2569.4,2569.0,1.3086]
[1730471948979,3.89161,2569.7,2569.0,1.38644298]
[1730471949183,3.89161,2569.7,2569.2,3.89216]
[1730471949484,3.89161,2569.7,2569.3,0.07783355]
[1730471949689,3.89161,2569.7,2569.4,1.328]
[1730471949879,3.90086,2570.0,2569.5,0.55]
[1730471950113,3.90086,2570.0,2569.5,4.51961968]
[1730471950445,0.00979,2570.0,2569.9,1.9172]
[1730471951435,0.00979,2570.0,2569.9,6.389263]
[1730471951792,0.00979,2570.0,2569.9,6.46707203]
[1730471952337,0.00979,2570.0,2569.9,6.389263]
[1730471952694,0.00979,2570.0,2569.9,6.46706981]
[1730471952993,0.00979,2570.0,2569.9,6.389263]
[1730471956137,0.00979,2570.0,2569.9,6.46707445]
[1730471956337,0.00979,2570.0,2569.9,6.389263]
[1730471957519,0.00979,2570.0,2569.9,6.46707676]
[1730471957716,0.00979,2570.0,2569.9,6.389263]
[1730471958036,0.00979,2570.0,2569.7,3.89142]
[1730471958334,0.00979,2570.0,2569.4,3.63043358]
[1730471958335,0.00979,2570.0,2569.4,5.25276]
[1730471958546,0.00979,2570.0,2569.5,3.96962573]
[1730471958844,0.00979,2570.0,2569.6,3.89158]
[1730471959204,0.00979,2570.0,2569.7,3.8915]
[1730471959400,0.00979,2570.0,2569.8,0.55]
[1730471959596,0.00979,2570.0,2569.8,0.444143]
[1730471959802,1.3212,2570.8,2570.3,3.8905]
[1730471960332,1.3212,2570.8,2570.1,3.89089]
[1730471960333,5.21106,2570.8,2570.2,3.89073]
[1730471960644,5.21106,2570.8,2570.0,4.18043358]
[1730471960645,3.89047,2570.4,2570.0,0.55]
[1730471960939,5.24926,2570.3,2569.8,3.89125]
[1730471961516,1.3586,2570.3,2569.8,3.89125]
[1730471961750,1.3586,2570.3,2569.6,5.30803]
[1730471961945,5.24926,2570.3,2569.7,4.4414]
[1730471962157,1.3586,2570.3,2569.7,4.51922126]
[1730471962365,1.3586,2570.3,2569.8,3.89126]
[1730471962574,1.3586,2570.3,2569.9,0.55]
[1730471962739,1.3586,2570.3,2569.9,4.44111]
[1730471963834,1.3586,2570.3,2569.8,0.55]
[1730471964166,1.3586,2570.3,2570.0,0.55]
[1730471964733,1.3586,2570.3,2570.0,4.44103]
[1730471964960,3.0,2570.5,2570.2,0.55]
[1730471965275,5.21667,2570.6,2570.2,0.55]
[1730471965276,4.3265,2570.6,2570.2,0.55]
[1730471965479,5.21664,2570.6,2570.2,0.55]
[1730471966270,1.3265,2570.6,2570.2,4.44071]
[1730471966446,1.3265,2570.6,2570.2,0.55]
[1730471966646,4.32301,2570.5,2570.1,0.55]
[1730471968656,4.32301,2570.5,2569.9,4.44117]
[1730471968861,3.89044,2570.4,2569.9,0.55]
[1730471969205,3.89036,2570.5,2570.0,3.89091]
[1730471969382,4.3265,2570.6,2570.3,0.55]
[1730471969545,2.43764834,2571.3,2570.3,3.38520003]
[1730471969546,4.3133,2571.0,2570.3,3.38520003]
[1730471969741,3.88984,2570.8,2570.3,3.38520003]
[1730471969945,3.88984,2570.8,2570.2,0.55]
[1730471969946,3.89006,2570.7,2570.2,0.55]
[1730471970146,3.89006,2570.7,2570.2,4.44074]
[1730471971159,4.710234,2570.8,2570.4,0.55]
[1730471971482,6.88971,2570.9,2570.4,4.44042]
[1730471971781,3.89009,2570.7,2570.2,0.55]
[1730471972080,3.88999,2570.7,2570.2,0.55]
[1730471972287,3.89029,2570.5,2570.2,0.55]
[1730471972957,3.89029,2570.5,2569.8,1.2886]
[1730471972958,3.89076,2570.2,2569.8,1.2886]
[1730471973466,3.89076,2570.2,2569.8,5.17995]
[1730471973797,3.89061,2570.3,2569.8,5.17995]
[1730471974093,3.89061,2570.3,2569.9,0.55]
[1730471974591,3.89061,2570.3,2569.9,4.44119]
[1730471974983,5.2711,2570.5,2570.0,3.89103]
[1730471975152,5.2711,2570.5,2570.1,0.55]
[1730471975356,1.3808,2570.5,2570.1,4.4408]
[1730471975672,5.27111,2570.5,2570.0,4.44102]
[1730471976188,3.89064,2570.3,2570.0,0.55]
[1730471976386,3.89064,2570.3,2569.8,1.2886]
[1730471976387,3.89082,2570.2,2569.8,1.2886]
[1730471976554,3.89082,2570.2,2569.9,0.55]
[1730471977054,7.78138,2570.3,2569.9,0.55]
[1730471977251,3.89022,2570.6,2570.1,3.89088]
[1730471977489,3.89022,2570.6,2569.9,1.87347756]
[1730471977490,5.23885,2570.7,2570.3,0.55]
[1730471977989,3.89015,2570.6,2570.2,0.55]
[1730471978354,5.23885,2570.7,2570.1,0.55]
[1730471978594,3.89025,2570.6,2570.1,4.9038656]
[1730471978796,3.0,2570.8,2570.1,4.9038656]
[1730471978797,6.8899,2570.8,2570.3,5.83019]
[1730471978956,3.89002,2570.7,2570.3,5.83019]
[1730471979154,3.89002,2570.7,2570.3,1.9397]
[1730471979667,3.89043,2570.5,2570.1,0.55]
[1730471979864,5.23923,2570.5,2570.1,0.55]
[1730471980065,9.1296,2570.5,2570.1,0.55]
[1730471980799,9.1296,2570.5,2569.7,4.24670003]
[1730471980800,1.3488,2570.5,2569.7,4.24670003]
[1730471981123,7.78099,2570.4,2569.9,3.89112]
[1730471981304,3.89044,2570.4,2569.9,5.094027]
[1730471981615,3.89044,2570.4,2570.0,3.89104]
[1730471981800,3.89044,2570.4,2569.9,1.202907]
[1730471982116,3.89068,2570.3,2570.0,0.55]
[1730471982317,5.2391,2570.5,2570.0,4.44103]
[1730471982525,1.3883,2570.7,2570.2,5.29767]
[1730471982821,5.27831,2570.7,2570.3,0.55]
[1730471983113,3.89022,2570.6,2570.3,0.55]
[1730471983315,6.8897,2570.9,2569.7,2.83520003]
[1730471983521,6.8897,2570.9,2569.7,3.89142]
[1730471983522,3.89074,2570.2,2569.7,3.89142]
[1730471984014,3.89074,2570.2,2569.8,3.89132]
[1730471984187,3.89092,2570.1,2569.6,3.89158]
[1730471984388,3.89092,2570.1,2569.6,5.094127]
[1730471984805,3.89074,2570.2,2569.7,4.4415]
[1730471985677,3.8909,2570.1,2569.7,4.4415]
[1730471985883,3.89074,2570.2,2569.7,4.4415]
[1730471986078,3.0,2570.1,2569.7,0.55]
[1730471986285,6.89095,2570.1,2569.7,0.55]
[1730471986733,3.0,2570.1,2569.8,0.55]
[1730471986979,3.89054,2570.4,2570.0,0.55]
[1730471987321,6.89038,2570.5,2570.0,0.55]
[1730471987613,6.89038,2570.5,2570.2,0.55]
[1730471987799,6.89038,2570.5,2570.1,0.55]
[1730471988019,10.78079,2570.5,2570.1,0.55]
[1730471988191,6.89038,2570.5,2570.1,0.55]
[1730471988388,3.0,2570.5,2570.1,4.44088]
[1730471988591,6.89024,2570.6,2570.1,5.415577]
[1730471989186,6.89024,2570.6,2570.1,5.415487]
[1730471989427,3.0,2570.6,2570.3,0.55]
[1730471989630,3.89024,2570.6,2570.3,0.55]
[1730471989932,6.89022,2570.6,2570.2,0.55]
[1730471990231,3.0,2570.6,2570.2,0.55]
[1730471990405,3.0,2570.6,2570.2,4.44074]
[1730471990608,3.0,2570.6,2570.2,5.415391]
[1730471990809,3.0,2570.6,2570.2,5.415371]
[1730471991126,6.89021,2570.6,2570.2,1.524651]
[1730471991334,3.0,2570.6,2570.2,5.415381]
[1730471991494,7.78011,2570.7,2570.2,5.415381]
[1730471991693,3.89001,2570.7,2570.4,0.55]
[1730471992236,3.89001,2570.7,2570.2,0.55]
[1730471992419,3.89023,2570.6,2570.2,0.55]
[1730471992621,3.89021,2570.6,2570.2,0.55]
[1730471992927,3.89021,2570.6,2570.1,3.89082]
[1730471992928,3.89035,2570.5,2570.1,0.55]
[1730471993116,3.89021,2570.6,2570.2,3.89074]
[1730471993435,3.89021,2570.6,2570.1,1.524698]
[1730471993437,3.89021,2570.6,2570.1,9.306298]
[1730471993604,3.89021,2570.6,2570.2,3.89073]
[1730471993796,3.89021,2570.6,2570.1,5.415488]
[1730471993797,3.89037,2570.5,2570.1,1.524698]
[1730471994325,3.89021,2570.6,2570.1,1.524698]
[1730471994502,3.89029,2570.5,2570.1,1.524698]
[1730471994865,3.89036,2570.5,2570.1,0.55]
[1730471995199,3.89041,2570.5,2570.1,0.55]
[1730471996098,3.89038,2570.5,2570.1,0.55]
[1730471996749,3.89022,2570.6,2570.1,0.55]
[1730471997042,3.89035,2570.5,2570.1,0.55]
[1730471998026,3.89005,2570.7,2570.3,0.55]
[1730471998347,8.30384,2570.8,2570.3,4.44052]
[1730471998498,8.30384,2570.8,2570.3,0.55]
[1730471998898,8.30384,2570.8,2570.2,0.55]
[1730471998899,3.89016,2570.6,2570.2,0.55]
[1730471999211,3.8904,2570.5,2570.1,0.55]
[1730472000239,3.88999,2570.7,2570.1,5.415596]
[1730472000442,3.88999,2570.7,2570.1,5.415536]
[1730472000443,3.89013,2570.7,2570.1,5.415536]
[1730472000607,3.89023,2570.6,2570.1,1.524706]
[1730472000813,3.89037,2570.5,2570.1,1.524706]
[1730472001344,3.89023,2570.6,2570.1,5.415586]
[1730472002534,5.30386,2570.8,2570.3,4.44053]
[1730472003055,2.44881708,2571.2,2570.7,3.88984]
[1730472003263,1.4034,2571.4,2570.9,0.55]
[1730472003447,11.62941708,2571.7,2571.1,4.43935]
[1730472003617,3.88864,2571.6,2571.1,0.55]
[1730472003817,3.88883,2571.5,2571.1,0.55]
[1730472004550,6.88864,2571.6,2571.1,0.55]
[1730472004911,3.0,2571.6,2571.1,0.55]
[1730472005122,6.88867,2571.6,2571.3,0.55]
[1730472005351,6.88868,2571.6,2571.1,4.43935]
[1730472005520,3.0,2571.6,2571.2,3.88922]
[1730472005721,6.88869,2571.6,2571.3,0.55]
[1730472006033,8.106747,2571.6,2571.1,0.55]
[1730472006230,3.0,2571.6,2571.1,4.43938]
[1730472006559,6.88828,2571.9,2571.3,0.55]
[1730472006715,2.44632343,2572.1,2571.5,0.55]
[1730472006716,3.88836,2571.8,2571.5,0.55]
[1730472006921,5.17036,2572.0,2571.5,0.55]
[1730472007115,1.2823,2572.0,2571.5,0.55]
[1730472007351,5.17044,2572.0,2571.5,0.55]
[1730472007571,0.517044,2571.9,2571.5,0.55]
[1730472007724,5.17044,2572.0,2571.5,0.55]
[1730472008062,5.16981,2572.4,2571.6,0.07776971]
[1730472008276,2.44632343,2572.6,2572.1,0.55]
[1730472008277,7.77445,2572.6,2572.1,0.55]
[1730472008436,7.77445,2572.6,2572.1,4.43776]
[1730472008437,3.88721,2572.6,2572.1,4.43776]
[1730472008755,3.88713,2572.6,2572.3,0.55]
[1730472008920,3.88689,2572.8,2572.3,0.55]
[1730472009121,3.88697,2572.7,2572.5,0.55]
[1730472009350,3.88711,2572.6,2572.5,0.55]
[1730472010625,3.88697,2572.7,2572.5,0.55]
[1730472010824,3.88711,2572.6,2572.2,0.55]
[1730472011528,3.88697,2572.7,2572.2,4.4377]
[1730472011755,3.88697,2572.7,2572.2,0.55]
[1730472011987,3.88734,2572.5,2572.2,0.55]
[1730472012503,4.575767,2572.7,2572.2,0.55]
[1730472012504,3.88757,2572.3,2572.2,0.55]
[1730472012655,3.88757,2572.3,2572.0,0.55]
[1730472012991,1.3939,2572.5,2571.5,1.3135]
[1730472012992,3.88843,2571.8,2571.5,1.3135]
[1730472013191,0.688697,2572.7,2570.9,2.83520003]
[1730472013192,3.88876,2571.6,2571.2,1.3135]
[1730472014606,3.88876,2571.6,2571.3,0.55]
[1730472014784,3.88843,2571.8,2571.3,0.55]
[1730472015394,3.88863,2571.6,2571.3,0.55]
[1730472015607,3.88848,2571.7,2571.3,0.55]
[1730472016163,3.88863,2571.6,2571.3,0.55]
[1730472016588,3.88878,2571.5,2571.3,0.55]
[1730472016793,3.88863,2571.6,2571.3,0.55]
[1730472017095,3.88844,2571.8,2571.3,0.55]
[1730472017305,3.88848,2571.7,2571.3,0.55]
[1730472017971,3.0,2571.9,2571.3,5.014345]
[1730472018306,3.88862,2571.6,2571.5,0.55]
[1730472018463,3.88862,2571.6,2571.3,0.55]
[1730472018903,3.88881,2571.5,2571.3,0.55]
[1730472019199,7.7771,2571.7,2571.3,0.55]
[1730472019397,7.77706,2571.7,2571.3,0.55]
[1730472019598,3.8885,2571.7,2571.3,0.55]
[1730472020117,3.88864,2571.6,2571.3,0.55]
[1730472020293,3.8885,2571.7,2571.3,0.55]
[1730472020611,3.88862,2571.6,2571.3,0.55]
[1730472020819,3.88862,2571.6,2571.2,1.3135]
[1730472020820,3.88978,2570.9,2570.2,3.89064]
[1730472020968,3.89014,2570.6,2570.1,1.3474]
[1730472021501,3.89046,2570.4,2570.1,1.3474]
[1730472021863,3.89014,2570.6,2570.1,1.3474]
[1730472022126,3.89029,2570.5,2570.1,1.3474]
[1730472022705,3.89045,2570.4,2570.2,0.55]
[1730472023067,3.89021,2570.6,2570.2,0.55]
[1730472023901,3.89059,2570.3,2570.2,0.55]
[1730472024106,3.89044,2570.4,2570.1,0.55]
[1730472024264,7.78097,2570.4,2570.1,0.55]
[1730472024707,3.8906,2570.3,2570.0,0.55]
[1730472025067,1.699621,2570.6,2570.0,0.55]
[1730472025068,5.589851,2570.6,2570.0,0.55]
[1730472025268,3.88958,2571.0,2570.3,1.8443]
[1730472025269,3.89005,2570.7,2570.3,1.8443]
[1730472025470,3.89014,2570.6,2570.3,1.8443]
[1730472025673,3.88938,2571.1,2570.4,3.8903]
[1730472025877,3.88938,2571.1,2570.6,3.89]
[1730472026105,3.88953,2571.0,2570.7,0.55]
[1730472026812,3.88893,2571.4,2570.9,3.38520003]
[1730472027016,3.88873,2571.6,2571.1,0.55]
[1730472027175,3.88878,2571.5,2571.1,0.55]
[1730472027909,3.8882,2571.9,2571.3,0.55]
[1730472027910,3.88817,2571.9,2571.3,0.55]
[1730472028221,3.88839,2571.8,2571.5,0.55]
[1730472029102,3.88817,2571.9,2571.5,0.55]
[1730472029103,3.88819,2571.9,2571.5,0.55]
[1730472029288,3.88802,2572.0,2571.5,4.4387]
[1730472029611,3.88802,2572.0,2571.5,5.4563495]
[1730472030477,3.88796,2572.1,2571.6,3.88862]
[1730472030815,3.88796,2572.1,2571.8,0.55]
[1730472031110,3.88814,2572.0,2571.6,0.55]
[1730472031816,3.88905,2571.4,2571.0,1.3055]
[1730472032127,3.88905,2571.4,2570.7,1.3055]
[1730472032128,3.0,2571.4,2570.7,1.3055]
[1730472032326,3.0,2571.4,2570.0,1.64627828]
[1730472032327,3.89025,2570.6,2570.4,1.3055]
[1730472032610,3.89025,2570.6,2570.0,1.64627828]
[1730472032611,3.89038,2570.5,2570.1,1.3055]
[1730472032813,5.2666,2570.9,2570.0,5.53730828]
[1730472032814,3.89085,2570.2,2570.0,1.64627828]
[1730472033013,3.89085,2570.2,2570.0,1.243]
[1730472033239,3.89089,2570.1,2570.0,1.243]
[1730472033513,8.27009,2570.1,2570.0,1.243]
[1730472033907,6.89089,2570.1,2570.0,1.243]
[1730472034610,3.0,2570.1,2570.0,1.243]
[1730472035304,7.7816,2570.2,2570.0,1.243]
[1730472035611,3.89089,2570.1,2570.0,1.243]
[1730472036412,6.89089,2570.1,2570.0,1.243]
[1730472036726,8.17409,2570.1,2570.0,1.243]
[1730472037394,8.17409,2570.1,2570.0,1e-05]
[1730472041018,8.17409,2570.1,2570.0,0.55001]
[1730472041218,9.46371716,2570.1,2570.0,0.55001]
[1730472041386,9.46371716,2570.1,2570.0,0.61622899]
[1730472041595,9.46371716,2570.1,2570.0,0.55001]
[1730472042297,9.46371716,2570.1,2570.0,0.61622899]
[1730472043021,8.18051716,2570.1,2570.0,0.61622899]
[1730472043224,6.89089,2570.1,2570.0,0.61622899]
[1730472043421,6.89089,2570.1,2570.0,0.06622899]
[1730472043718,3.89271,2568.9,2568.8,0.40350263]
[1730472044017,3.89271,2568.9,2568.3,1.3656]
[1730472044018,3.89302,2568.7,2568.3,1.3656]
[1730472044220,3.89271,2568.9,2568.3,5.25912]
[1730472044445,7.78555,2568.9,2568.4,3.89338]
[1730472044602,7.78551,2568.9,2568.4,3.89338]
[1730472044810,3.89271,2568.9,2568.4,3.89338]
[1730472045125,3.89271,2568.9,2568.5,0.55]
[1730472045333,3.0,2569.0,2568.5,4.44329]
[1730472045485,6.89271,2569.0,2568.5,4.4433]
[1730472046329,3.89274,2568.9,2568.5,0.55]
[1730472046688,3.89287,2568.8,2568.5,0.55]
[1730472046932,4.971431,2568.8,2568.4,0.55]
[1730472047215,3.89303,2568.7,2568.4,0.55]
[1730472047622,3.89317,2568.6,2568.3,1.3656]
[1730472047832,6.89267,2569.0,2568.3,5.25922]
[1730472048015,6.89267,2569.0,2568.4,3.89332]
[1730472048227,3.0,2569.1,2568.4,0.0778617]
[1730472048424,3.89304,2568.7,2568.3,1.3656]
[1730472048732,3.89279,2568.9,2568.4,3.89345]
[1730472049029,3.89279,2568.9,2568.4,0.55]
[1730472049238,3.89312,2568.7,2568.4,0.55]
[1730472049734,3.89281,2568.9,2568.4,0.55]
[1730472050231,3.89286,2568.8,2568.4,0.55]
[1730472050643,4.282091,2568.9,2568.4,4.44343]
[1730472050933,3.89299,2568.8,2568.4,0.55]
[1730472052740,4.282091,2568.9,2568.4,0.55]
[1730472052937,8.174911,2568.9,2568.4,0.55]
[1730472053303,8.174901,2568.9,2568.4,0.55]
[1730472053637,8.174911,2568.9,2568.4,0.55]
[1730472053810,0.8174911,2568.8,2568.4,0.55]
[1730472054202,7.78564,2568.9,2568.4,0.55]
[1730472054619,3.89288,2568.8,2568.4,0.55]
[1730472055230,3.89282,2568.9,2568.4,0.55]
[1730472055231,3.89303,2568.7,2568.4,0.55]
[1730472055775,3.89282,2568.9,2568.4,0.55]
[1730472056062,3.89289,2568.8,2568.4,0.55]
[1730472056267,4.49414522,2568.8,2568.4,0.55]
[1730472056467,3.89311,2568.7,2568.4,0.55]
[1730472056983,6.89304,2568.7,2568.2,0.4036757]
[1730472057131,3.89401,2568.1,2567.9,1.4012]
[1730472057329,3.89401,2568.1,2567.6,1.4012]
[1730472057330,3.89416,2568.0,2567.6,1.4012]
[1730472057564,4.672977,2568.0,2567.6,1.4012]
[1730472057936,0.778817,2568.0,2567.6,1.4012]
[1730472058260,0.778817,2568.0,2567.6,5.29581]
[1730472058458,4.672997,2568.0,2567.5,4.29758211]
[1730472058676,6.89357,2568.4,2567.7,1.3356]
[1730472058829,3.89364,2568.3,2567.7,1.3356]
[1730472059025,1.4042,2569.0,2567.9,1.3356]
[1730472059226,3.89304,2568.7,2568.2,3.89368]
[1730472059641,3.89304,2568.7,2568.2,4.44377]
[1730472060283,6.89288,2568.8,2568.4,0.55]
[1730472060784,3.89271,2569.0,2568.6,0.55]
[1730472061585,3.89276,2568.9,2568.6,0.55]
[1730472062099,7.78556,2568.9,2568.6,0.55]
[1730472062302,3.0,2568.7,2568.2,1.2843]
[1730472062499,3.0,2568.7,2567.1,3.69232743]
[1730472062500,3.8937,2568.3,2567.9,1.2843]
[1730472062997,3.89355,2568.4,2567.9,5.17847]
[1730472063215,1.3812,2568.7,2567.9,5.17844]
[1730472063405,3.89337,2568.5,2568.0,3.89399]
[1730472063607,1.3812,2568.7,2567.9,9.07257]
[1730472063905,3.8935,2568.4,2568.0,0.55]
[1730472064213,5.27432,2568.7,2568.0,0.55]
[1730472064363,3.778556,2568.9,2568.1,1.2986]
[1730472064572,3.89273,2568.9,2568.4,3.89345]
[1730472064883,3.89273,2568.9,2568.5,0.55]
[1730472065263,3.89205,2569.4,2568.8,0.55]
[1730472065572,0.527435,2569.4,2568.8,0.55]
[1730472065772,3.89174,2569.6,2569.1,0.55]
[1730472065994,3.89174,2569.6,2569.1,4.44237]
[1730472066169,3.89174,2569.6,2569.3,0.55]
[1730472066599,1.3823,2569.8,2569.3,0.55]
[1730472066807,1.3886,2570.1,2569.3,4.44202]
[1730472066979,3.89105,2570.0,2569.5,0.55]
[1730472067192,4.808358,2569.9,2569.5,0.55]
[1730472067410,4.808358,2569.9,2569.3,3.89202]
[1730472067411,3.89136,2569.8,2569.4,0.55]
[1730472067582,4.808358,2569.9,2569.4,0.55]
[1730472067783,3.89146,2569.8,2569.3,0.55]
[1730472068020,3.89146,2569.8,2569.3,4.4421]
[1730472068529,7.78292,2569.8,2569.3,4.4421]
[1730472068681,3.89146,2569.8,2569.3,4.4421]
[1730472070322,3.89146,2569.8,2569.3,4.44208]
[1730472070839,3.89144,2569.8,2569.3,4.44208]
[1730472071130,3.89144,2569.8,2569.3,4.44202]
[1730472071428,3.0,2570.2,2570.0,0.55]
[1730472071717,3.88952,2571.1,2570.0,0.55]
[1730472071718,3.89038,2570.5,2570.0,0.55]
[1730472071927,3.89044,2570.4,2570.0,0.55]
[1730472072135,3.89061,2570.3,2570.0,0.55]
[1730472072908,0.389038,2570.4,2570.0,0.55]
[1730472073109,1.2955,2570.7,2570.0,0.55]
[1730472073422,3.89039,2570.5,2570.0,4.44098]
[1730472073923,3.89051,2570.4,2570.0,0.55]
[1730472074512,3.89014,2570.6,2570.2,0.55]
[1730472074742,3.89036,2570.5,2570.2,0.55]
[1730472074950,0.77805,2570.5,2570.0,0.55]
[1730472075321,3.89078,2570.2,2570.0,0.55]
[1730472075522,3.89057,2570.4,2570.0,0.55]
[1730472075753,3.89031,2570.5,2570.0,4.44097]
[1730472075930,3.89031,2570.5,2570.0,0.55]
[1730472076376,3.89055,2570.4,2570.0,0.55]
[1730472076666,4.668526,2570.4,2570.0,0.55]
[1730472077084,4.668526,2570.4,2570.0,4.44104]
[1730472077960,3.89089,2570.1,2570.0,0.55]
[1730472078127,3.83823744,2570.1,2570.0,0.55]
[1730472078330,4.73986718,2570.1,2570.0,0.55]
[1730472079256,3.8915,2569.7,2569.3,1.3752]
[1730472079630,3.89131,2569.9,2569.0,5.26766]
[1730472079631,1.2872,2569.8,2569.0,5.26766]
[1730472079864,7.79253974,2570.1,2568.6,1.3752]
[1730472079865,3.8928,2568.9,2568.6,1.3752]
[1730472080173,3.8928,2568.9,2568.0,8.09146677]
[1730472080174,3.8928,2568.9,2568.3,5.26868]
[1730472080332,3.89294,2568.8,2568.3,5.26868]
[1730472080734,3.89294,2568.8,2568.3,9.16222]
[1730472081042,3.89294,2568.8,2568.4,3.89344]
[1730472081249,3.89276,2568.9,2568.4,3.89344]
[1730472082068,3.89288,2568.8,2568.4,0.55]
[1730472082278,3.89256,2569.0,2568.4,0.55]
[1730472082453,3.89242,2569.1,2568.7,0.55]
[1730472082651,3.89257,2569.0,2568.7,0.55]
[1730472082851,3.89257,2569.0,2568.6,0.55]
[1730472083063,4.718186,2569.2,2568.6,0.55]
[1730472083064,3.89241,2569.1,2568.8,0.55]
[1730472083248,3.8926,2569.0,2568.6,0.55]
[1730472083654,3.825826,2569.2,2568.6,0.55]
[1730472083843,3.89263,2569.0,2568.6,0.55]
[1730472084359,3.8925,2569.1,2568.6,4.44307]
[1730472084556,3.0,2569.5,2568.9,1.8215]
[1730472084762,3.89227,2569.2,2568.9,1.8215]
[1730472084957,3.89211,2569.3,2568.9,5.71419]
[1730472085172,3.89204,2569.4,2568.9,5.71419]
[1730472085401,3.89204,2569.4,2568.9,1.8215]
[1730472085547,3.89204,2569.4,2569.1,0.55]
[1730472085751,3.89219,2569.3,2569.1,0.55]
[1730472086058,3.89219,2569.3,2568.9,1.2715]
[1730472086059,3.89219,2569.3,2569.0,0.55]
[1730472088205,3.89166,2569.6,2569.0,1.510696]
[1730472088398,3.89162,2569.7,2569.0,4.44247]
[1730472088553,3.89143,2569.8,2569.3,4.44199]
[1730472088748,3.89101,2570.1,2569.6,3.89163]
[1730472088952,3.89098,2570.1,2569.7,0.55]
[1730472089199,3.89053,2570.4,2569.9,0.55]
[1730472089351,3.89053,2570.4,2570.1,0.55]
[1730472089717,1.3434,2570.5,2570.1,0.55]
[1730472089718,3.89074,2570.2,2570.1,0.55]
[1730472090786,3.8906,2570.3,2570.1,0.55]
[1730472091094,3.89083,2570.2,2569.8,0.55]
[1730472091390,3.89083,2570.2,2569.8,4.44134]
[1730472091555,3.89097,2570.1,2569.8,0.55]
[1730472092989,3.89083,2570.2,2569.8,0.55]
[1730472093288,3.89091,2570.1,2569.8,0.55]
[1730472096709,7.78194,2570.1,2569.8,0.55]
[1730472096915,1.2975,2570.0,2569.2,3.89221]
[1730472097082,3.89135,2569.8,2569.2,3.89221]
[1730472097515,3.89135,2569.8,2569.1,5.2973]
[1730472097516,3.89173,2569.6,2569.1,5.2973]
[1730472097724,3.8915,2569.7,2569.2,3.89217]
[1730472097925,3.89169,2569.6,2569.1,5.2973]
[1730472098235,3.89169,2569.6,2569.1,9.18963]
[1730472098376,3.89192,2569.5,2569.2,0.55]
[1730472098575,3.8918,2569.6,2569.1,1.405]
[1730472098778,3.89197,2569.4,2569.1,1.405]
[1730472099078,3.8918,2569.6,2569.1,1.405]
[1730472099079,3.89181,2569.5,2569.1,5.2974]
[1730472099279,3.89196,2569.4,2569.1,1.405]
[1730472100016,0.778373,2569.4,2568.8,1.3]
[1730472100218,3.89275,2568.9,2568.5,1.2943]
[1730472100425,0.778373,2569.4,2568.5,1.2943]
[1730472100426,3.89252,2569.1,2568.5,1.2943]
[1730472100632,3.89349,2568.4,2567.8,5.18865]
[1730472100926,3.89379,2568.2,2567.8,1.813165]
[1730472101135,3.894,2568.1,2567.8,1.2943]
[1730472101491,4.3715,2568.4,2567.8,1.2943]
[1730472101492,3.89362,2568.3,2567.8,1.2943]
[1730472101721,3.89377,2568.2,2567.8,1.2943]
[1730472102628,3.89377,2568.2,2567.9,0.55]
[1730472102837,3.89392,2568.1,2567.9,0.55]
[1730472102988,4.720297,2568.2,2567.9,0.55]
[1730472104493,3.89408,2568.0,2567.9,0.55]
[1730472105317,7.78796,2568.1,2567.7,0.55]
[1730472105518,3.89395,2568.1,2567.7,0.55]
[1730472106105,7.720307,2568.2,2567.7,4.44449]